bitfinex-derivatives/quotes_SOLF0:USTF0_20250820
["timestamp","ask_amount","ask_price","bid_price","bid_amount"]
[1755694040735,5.5012,181.75,181.68,3.12]
[1755694040937,136.92,181.8,181.68,3.12]
[1755694041438,5.5011,181.76,181.72,5.502]
[1755694041634,5.5011,181.76,181.67,6.04330904]
[1755694041828,5.5011,181.76,181.75,3.12]
[1755694043440,5.5014,181.75,181.73,3.12]
[1755694043940,5.5014,181.75,181.74,3.12]
[1755694045131,5.5017,181.74,181.71,3.12]
[1755694045335,5.5017,181.74,181.72,3.12]
[1755694045639,5.5017,181.74,181.68,6.04330904]
[1755694045839,5.5017,181.74,181.73,2.84]
[1755694046038,0.51,181.82,181.74,2.84]
[1755694046438,0.51,181.82,181.74,8.3412]
[1755694046637,0.51,181.82,181.7,2.84]
[1755694047039,0.51,181.82,181.71,5.5023]
[1755694047236,5.5016,181.74,181.71,5.5023]
[1755694047444,5.5016,181.74,181.72,2.84]
[1755694048644,5.5016,181.74,181.73,2.84]
[1755694050446,5.5013,181.75,181.74,2.84]
[1755694050648,0.51,181.79,181.69,2.84]
[1755694050845,0.51,181.79,181.72,2.84]
[1755694051443,0.51,181.79,181.69,2.84]
[1755694052445,5.5012,181.75,181.69,2.84]
[1755694052654,0.51,181.79,181.73,2.84]
[1755694053145,0.51,181.79,181.73,8.3416]
[1755694054151,137.43,181.83,181.74,8.3414]
[1755694055250,5.5007,181.77,181.73,5.5016]
[1755694055451,5.5007,181.77,181.75,2.84]
[1755694056750,5.5008,181.76,181.73,5.5016]
[1755694056956,0.51,181.76,181.72,2.84]
[1755694057555,0.51,181.76,181.7,2.84]
[1755694057863,5.5014,181.75,181.72,2.84]
[1755694058056,0.51,181.79,181.73,2.84]
[1755694059556,5.5013,181.75,181.73,2.84]
[1755694060665,5.5015,181.74,181.73,2.84]
[1755694062262,0.51,181.79,181.7,6.04330904]
[1755694062459,0.51,181.76,181.7,2.84]
[1755694062768,0.51,181.76,181.67,8.88330904]
[1755694063263,0.51,181.76,181.68,6.04330904]
[1755694064066,5.5026,181.71,181.68,6.04330904]
[1755694064260,0.51,181.76,181.68,6.04330904]
[1755694064461,2.42143028,181.74,181.66,6.04330904]
[1755694064766,0.51,181.73,181.66,6.04330904]
[1755694065565,0.51,181.72,181.65,6.04330904]
[1755694065871,0.51,181.72,181.63,6.04330904]
[1755694066072,5.5045,181.64,181.63,6.04330904]
[1755694066264,0.51,181.69,181.62,6.04330904]
[1755694066459,0.51,181.69,181.63,2.84]
[1755694068368,0.51,181.69,181.6,119.43516933]
[1755694068867,0.51,181.69,181.6,124.94076933]
[1755694069265,0.51,181.69,181.6,119.43516933]
[1755694069464,0.51,181.69,181.6,113.39186029]
[1755694070466,5.5054,181.61,181.6,110.55186029]
[1755694070876,6.0154,181.61,181.6,110.55186029]
[1755694071074,5.5054,181.61,181.6,110.55186029]
[1755694074673,2.42143028,181.68,181.6,110.55186029]
[1755694074883,0.51,181.68,181.61,2.84]
[1755694075272,5.5047,181.64,181.63,2.84]
[1755694075969,0.52,181.71,181.64,2.99]
[1755694076373,5.5042,181.65,181.64,2.99]
[1755694076880,5.504,181.66,181.64,2.99]
[1755694077083,5.504,181.66,181.65,2.99]
[1755694077374,0.52,181.71,181.61,8.4953]
[1755694077578,0.52,181.71,181.61,2.99]
[1755694078179,5.5048,181.63,181.62,2.99]
[1755694078478,0.52,181.66,181.6,110.55186029]
[1755694078677,5.5052,181.62,181.61,2.99]
[1755694080471,5.5049,181.63,181.61,2.99]
[1755694080682,0.52,181.71,181.62,2.99]
[1755694080880,0.52,181.74,181.62,5.41143028]
[1755694081178,5.5032,181.69,181.63,2.99]
[1755694081478,0.52,181.74,181.63,2.99]
[1755694082171,0.52,181.75,181.64,2.99]
[1755694082371,0.52,181.72,181.61,2.99]
[1755694082779,5.5044,181.65,181.61,5.5053]
[1755694083081,0.52,181.7,181.63,2.99]
[1755694083282,5.5045,181.64,181.63,2.99]
[1755694084780,5.5043,181.65,181.63,2.99]
[1755694085280,0.52,181.7,181.62,2.99]
[1755694086075,0.52,181.7,181.63,5.5047]
[1755694086578,0.52,181.7,181.64,2.99]
[1755694087384,5.5042,181.65,181.64,2.99]
[1755694087777,0.52,181.7,181.64,2.99]
[1755694088581,2.42143028,181.73,181.64,2.99]
[1755694088783,2.42143028,181.73,181.64,8.4943]
[1755694088984,0.52,181.74,181.64,2.99]
[1755694089579,5.5035,181.68,181.64,2.99]
[1755694089880,5.5035,181.68,181.63,2.99]
[1755694090287,0.52,181.74,181.64,2.99]
[1755694090591,0.52,181.74,181.65,2.99]
[1755694090886,13.94173028,181.79,181.66,2.99]
[1755694091083,0.52,181.79,181.66,2.99]
[1755694091387,5.5018,181.73,181.72,2.99]
[1755694096687,5.5016,181.74,181.72,2.99]
[1755694098789,5.5016,181.74,181.71,5.5023]
[1755694098986,5.5013,181.75,181.72,2.99]
[1755694099186,0.52,181.79,181.73,2.99]
[1755694099703,5.5015,181.74,181.73,2.99]
[1755694099986,0.52,181.79,181.71,2.99]
[1755694100190,0.52,181.79,181.68,2.99]
[1755694100689,5.5023,181.72,181.68,5.5031]
[1755694100890,5.5023,181.72,181.7,2.99]
[1755694101486,5.5024,181.71,181.7,2.99]
[1755694104893,5.5024,181.71,181.69,2.99]
[1755694105900,5.5022,181.72,181.69,2.99]
[1755694106202,5.5022,181.72,181.7,2.91]
[1755694106395,0.51,181.74,181.68,2.91]
[1755694106696,5.5025,181.71,181.68,2.91]
[1755694106896,0.51,181.74,181.68,2.91]
[1755694107099,0.51,181.74,181.65,2.91]
[1755694109084,5.5027,181.7,181.68,2.91]
[1755694109288,0.51,181.7,181.64,96.09868664]
[1755694109686,0.51,181.7,181.64,93.67725636]
[1755694110292,5.5034,181.68,181.65,2.91]
[1755694110485,5.5034,181.68,181.64,96.27175636]
[1755694110689,5.5034,181.68,181.66,2.91]
[1755694112293,5.5031,181.69,181.66,2.91]
[1755694112498,5.5031,181.69,181.64,96.27175636]
[1755694112499,5.5031,181.69,181.67,2.91]
[1755694112701,0.51,181.73,181.67,2.91]
[1755694113501,0.51,181.77,181.67,2.91]
[1755694114000,5.5023,181.72,181.68,2.91]
[1755694114199,5.5023,181.72,181.67,5.5035]
[1755694114504,5.5023,181.72,181.71,2.91]
[1755694114697,5.5024,181.71,181.65,2.91]
[1755694114897,0.51,181.75,181.65,2.91]
[1755694115602,5.5029,181.7,181.66,2.91]
[1755694115802,0.51,181.75,181.65,5.5041]
[1755694116002,0.51,181.75,181.66,2.91]
[1755694117403,0.51,181.75,181.65,5.5041]
[1755694117404,5.5028,181.7,181.65,5.5041]
[1755694117706,5.5028,181.7,181.68,2.91]
[1755694117898,5.5028,181.7,181.69,2.91]
[1755694121910,5.503,181.69,181.67,2.91]
[1755694122208,5.503,181.69,181.68,2.91]
[1755694122910,13.42203028,181.78,181.65,90.65186502]
[1755694123105,13.42203028,181.78,181.68,2.91]
[1755694123106,0.51,181.78,181.68,2.91]
[1755694123307,2.93143028,181.81,181.7,2.42143028]
[1755694123512,5.5014,181.75,181.72,2.91]
[1755694123705,0.51,181.8,181.73,2.91]
[1755694124011,0.51,181.8,181.69,93.6218496]
[1755694124211,0.51,181.8,181.69,96.5318496]
[1755694125005,0.51,181.76,181.7,2.91]
[1755694125909,0.51,181.76,181.69,93.6218496]
[1755694126511,5.5023,181.72,181.69,93.6218496]
[1755694126810,5.5023,181.72,181.7,2.91]
[1755694128618,5.5024,181.71,181.7,2.91]
[1755694129817,0.51,181.76,181.7,2.91]
[1755694131018,5.5021,181.72,181.7,2.91]
[1755694131220,5.5021,181.72,181.71,2.91]
[1755694131918,5.5025,181.71,181.69,96.5318496]
[1755694132121,2.93143028,181.77,181.69,93.6218496]
[1755694132312,0.51,181.76,181.69,93.6218496]
[1755694132817,5.5027,181.7,181.69,93.6218496]
[1755694134718,5.5025,181.71,181.69,96.5318496]
[1755694134922,5.5025,181.71,181.7,2.91]
[1755694135420,5.5021,181.72,181.71,2.91]
[1755694136922,5.5021,181.72,181.69,93.6218496]
[1755694137126,5.5021,181.72,181.7,3.08]
[1755694138826,5.5024,181.71,181.7,3.08]
[1755694139026,5.5024,181.71,181.69,93.6218496]
[1755694139027,0.51,181.77,181.69,93.6218496]
[1755694139726,5.5027,181.7,181.69,93.6218496]
[1755694140626,0.51,181.75,181.71,3.08]
[1755694140824,0.51,181.74,181.71,3.08]
[1755694141023,0.51,181.76,181.72,3.08]
[1755694141426,0.51,181.75,181.72,3.08]
[1755694141834,5.502,181.73,181.72,3.08]
[1755694143629,0.51,181.71,181.69,93.6218496]
[1755694143826,0.51,181.77,181.69,93.6218496]
[1755694144021,5.5023,181.72,181.69,93.6218496]
[1755694144331,0.51,181.77,181.69,93.6218496]
[1755694145929,5.5025,181.71,181.69,93.6218496]
[1755694146125,13.42213028,181.78,181.69,96.7018496]
[1755694146330,0.51,181.73,181.69,96.7018496]
[1755694147032,5.5025,181.71,181.69,96.7018496]
[1755694147229,13.42213028,181.78,181.69,96.7018496]
[1755694147833,5.5018,181.73,181.7,3.08]
[1755694148027,5.5018,181.73,181.69,93.6218496]
[1755694148233,5.5018,181.73,181.72,3.08]
[1755694149531,5.5023,181.72,181.69,96.7018496]
[1755694149727,2.42143028,181.78,181.7,3.08]
[1755694150238,5.5023,181.72,181.71,3.08]
[1755694150435,2.42143028,181.78,181.71,3.08]
[1755694150928,5.5023,181.72,181.71,3.08]
[1755694151130,2.42143028,181.78,181.71,3.08]
[1755694152237,5.5023,181.72,181.71,3.08]
[1755694152436,2.42143028,181.78,181.71,3.08]
[1755694153031,2.42143028,181.81,181.7,3.08]
[1755694153835,5.5016,181.74,181.7,3.08]
[1755694154037,5.5016,181.74,181.69,105.16805864]
[1755694154236,5.5016,181.74,181.73,3.08]
[1755694156243,5.502,181.73,181.7,3.08]
[1755694156541,2.42143028,181.81,181.7,3.08]
[1755694156936,10.9995,181.8,181.7,3.08]
[1755694157437,5.502,181.73,181.69,93.6218496]
[1755694157642,10.9995,181.8,181.71,3.08]
[1755694158247,5.502,181.73,181.69,93.6218496]
[1755694158549,6.20636067,181.82,181.72,3.08]
[1755694158745,2.42143028,181.81,181.72,3.08]
[1755694158943,5.5013,181.75,181.72,3.08]
[1755694159149,2.42143028,181.81,181.73,3.08]
[1755694159650,5.5014,181.75,181.73,3.08]
[1755694160144,5.5014,181.75,181.74,3.08]
[1755694161052,5.5017,181.74,181.69,105.16785864]
[1755694161241,5.5017,181.74,181.73,3.08]
[1755694163650,5.5012,181.75,181.73,3.08]
[1755694164547,389.96216936,181.85,181.7,3.08]
[1755694164741,389.96216936,181.85,181.69,102.08658892]
[1755694164742,369.7,181.85,181.74,6.04330904]
[1755694164946,369.7,181.85,181.75,3.08]
[1755694165252,5.4995,181.81,181.75,3.08]
[1755694166355,5.4995,181.81,181.76,5.5008]
[1755694166652,2.42143028,181.87,181.74,3.04]
[1755694167256,2.42143028,181.87,181.75,5.501]
[1755694167453,2.42143028,181.87,181.76,3.04]
[1755694168050,5.4995,181.81,181.77,3.04]
[1755694168250,5.4995,181.81,181.76,5.5008]
[1755694168451,5.4995,181.81,181.79,3.04]
[1755694168750,2.42143028,181.88,181.77,3.04]
[1755694168951,147.3937,181.9,181.77,3.04]
[1755694170550,5.4989,181.83,181.78,5.5002]
[1755694170751,5.4989,181.83,181.8,3.04]
[1755694171253,5.4985,181.84,181.8,3.04]
[1755694171457,5.4985,181.84,181.81,3.04]
[1755694171758,5.4985,181.84,181.79,5.4999]
[1755694171960,5.4985,181.84,181.81,3.04]
[1755694172254,5.4985,181.84,181.79,5.4999]
[1755694172460,5.4985,181.84,181.82,3.04]
[1755694174261,5.4987,181.83,181.82,3.04]
[1755694174458,136.4,181.9,181.82,3.04]
[1755694175056,5.4985,181.84,181.78,3.04]
[1755694175557,5.4985,181.84,181.78,5.5]
[1755694175961,5.4985,181.84,181.81,3.04]
[1755694176159,136.4,181.9,181.78,3.04]
[1755694176353,2.42143028,181.88,181.78,3.04]
[1755694176553,5.4992,181.82,181.78,3.04]
[1755694176958,2.42143028,181.88,181.75,2.42143028]
[1755694177165,5.5003,181.78,181.73,3.04]
[1755694177363,2.42143028,181.85,181.73,3.04]
[1755694177558,5.5005,181.78,181.73,3.04]
[1755694177758,2.42143028,181.85,181.73,3.04]
[1755694178159,5.5006,181.77,181.72,369.64]
[1755694178364,2.42143028,181.85,181.74,3.04]
[1755694178965,5.5004,181.78,181.75,3.04]
[1755694179166,2.42143028,181.82,181.72,3.04]
[1755694179559,5.5008,181.77,181.72,3.04]
[1755694179760,2.42143028,181.82,181.7,136.3]
[1755694179964,2.42143028,181.79,181.7,136.3]
[1755694180570,2.42143028,181.79,181.7,144.8427]
[1755694180966,2.42143028,181.79,181.71,3.04]
[1755694181770,5.5007,181.77,181.71,8.5422]
[1755694181963,5.5007,181.77,181.71,5.5022]
[1755694182270,13.41943028,181.83,181.73,3.04]
[1755694183269,2.42143028,181.83,181.73,3.04]
[1755694183675,2.42143028,181.86,181.73,3.04]
[1755694183979,2.42143028,181.86,181.77,3.04]
[1755694184166,54.8980546,181.87,181.77,3.04]
[1755694184569,5.4989,181.83,181.77,8.5403]
[1755694184765,2.42143028,181.89,181.77,8.5403]
[1755694185074,5.4993,181.82,181.79,3.04]
[1755694185572,2.42143028,181.89,181.76,3.04]
[1755694185773,5.4989,181.83,181.77,5.5005]
[1755694185976,5.4989,181.83,181.8,3.04]
[1755694187174,5.4989,181.83,181.78,3.04]
[1755694187368,5.4989,181.83,181.79,3.04]
[1755694187569,5.4989,181.83,181.81,3.04]
[1755694188874,5.499,181.82,181.81,3.04]
[1755694189076,5.499,181.82,181.79,3.04]
[1755694190072,13.41553028,181.89,181.75,2.42143028]
[1755694190265,2.42143028,181.86,181.75,3.04]
[1755694190669,5.4991,181.82,181.76,5.5007]
[1755694190872,5.4991,181.82,181.79,3.04]
[1755694191072,5.4991,181.82,181.76,5.5007]
[1755694191073,5.4991,181.82,181.76,3.04]
[1755694191978,5.4993,181.81,181.77,3.04]
[1755694192182,13.41553028,181.89,181.78,3.04]
[1755694192473,13.41553028,181.89,181.75,5.46143028]
[1755694192676,2.42143028,181.86,181.76,3.04]
[1755694193180,5.5001,181.79,181.76,3.04]
[1755694193776,5.5003,181.78,181.76,3.04]
[1755694195171,2.42143028,181.86,181.77,3.04]
[1755694195574,5.4998,181.8,181.77,3.04]
[1755694195776,2.42143028,181.86,181.77,3.04]
[1755694196085,5.5001,181.79,181.73,8.4716]
[1755694196375,2.42143028,181.86,181.73,2.97]
[1755694196770,5.5,181.79,181.73,2.97]
[1755694196970,2.42143028,181.86,181.73,2.97]
[1755694197168,5.5005,181.78,181.72,7.92333028]
[1755694197377,5.5005,181.78,181.75,2.97]
[1755694197568,2.42143028,181.86,181.75,2.97]
[1755694198579,5.5001,181.79,181.74,5.5014]
[1755694198880,2.42143028,181.83,181.72,2.97]
[1755694199183,5.5009,181.76,181.72,2.97]
[1755694199477,2.42143028,181.8,181.72,2.97]
[1755694199876,5.5013,181.75,181.71,2.97]
[1755694200080,2.42143028,181.8,181.72,2.97]
[1755694200877,5.501,181.76,181.72,2.97]
[1755694201074,2.42143028,181.83,181.72,2.97]
[1755694201577,5.5005,181.78,181.73,5.5015]
[1755694201778,5.5005,181.78,181.75,2.97]
[1755694201984,5.5005,181.78,181.7,136.3]
[1755694202283,5.5005,181.78,181.71,2.97]
[1755694202581,5.5005,181.78,181.73,5.5017]
[1755694203080,5.5005,181.78,181.74,2.97]
[1755694203283,5.5005,181.78,181.75,2.97]
[1755694203471,5.5005,181.78,181.76,2.97]
[1755694203778,2.42143028,181.83,181.75,5.5011]
[1755694203974,2.42143028,181.83,181.75,8.4711]
[1755694204182,2.42143028,181.83,181.75,2.97]
[1755694204381,2.42143028,181.83,181.71,8.4722]
[1755694204580,2.42143028,181.83,181.71,2.97]
[1755694205284,2.42143028,181.83,181.7,2.97]
[1755694205579,5.5001,181.79,181.74,5.5012]
[1755694205787,10.9964,181.85,181.75,2.97]
[1755694205982,2.42143028,181.86,181.75,2.97]
[1755694206173,5.4995,181.81,181.76,2.97]
[1755694206379,2.42143028,181.86,181.77,2.97]
[1755694207284,2.42143028,181.87,181.77,2.97]
[1755694207981,5.4995,181.81,181.76,5.5008]
[1755694208284,5.4995,181.81,181.78,2.97]
[1755694208879,5.4996,181.8,181.78,2.97]
[1755694210987,5.4996,181.8,181.75,5.5011]
[1755694211185,5.4996,181.8,181.76,2.97]
[1755694211487,5.4996,181.8,181.74,5.5013]
[1755694211684,5.4996,181.8,181.78,2.97]
[1755694212989,5.4999,181.79,181.78,2.97]
[1755694213283,0.04042206,181.81,181.74,2.97]
[1755694213787,5.5001,181.79,181.73,5.5017]
[1755694213987,5.5001,181.79,181.76,2.97]
[1755694214187,5.5001,181.79,181.77,2.97]
[1755694214485,5.4996,181.8,181.72,8.46473932]
[1755694214789,2.42143028,181.87,181.74,2.97]
[1755694215088,2.42143028,181.87,181.77,2.97]
[1755694215787,5.4994,181.81,181.78,2.97]
[1755694215984,5.4994,181.81,181.79,2.97]
[1755694217786,5.4994,181.81,181.8,2.97]
[1755694217989,2.42143028,181.91,181.8,2.97]
[1755694218290,19.56467966,181.94,181.8,2.97]
[1755694218688,5.498,181.86,181.8,2.97]
[1755694220288,5.498,181.86,181.81,2.97]
[1755694220481,5.498,181.86,181.8,5.4995]
[1755694220684,5.498,181.86,181.83,2.97]
[1755694222792,5.4982,181.85,181.83,2.97]
[1755694223887,5.4979,181.86,181.83,2.97]
[1755694226491,5.5372888,181.87,181.82,3.1]
[1755694226687,5.5372888,181.87,181.81,5.4993]
[1755694226688,0.0395888,181.87,181.81,5.4993]
[1755694226886,5.4978,181.86,181.83,3.1]
[1755694227093,0.0395888,181.87,181.83,3.1]
[1755694227286,0.0395888,181.87,181.79,3.1]
[1755694227489,0.0395888,181.87,181.79,9.14330904]
[1755694227787,97.17732729,181.95,181.84,2.42143028]
[1755694228086,0.04,181.99,181.88,3.1]
[1755694228292,5.4956,181.94,181.88,5.497]
[1755694228492,5.4956,181.94,181.9,3.1]
[1755694228691,5.4956,181.94,181.91,3.1]
[1755694228892,0.04,181.99,181.92,3.1]
[1755694230191,0.04,181.99,181.92,8.596]
[1755694230500,0.04,181.99,181.93,3.1]
[1755694231893,0.04,182.03,181.94,3.1]
[1755694232789,0.04,182.03,181.97,0.03497912]
[1755694233695,0.04,182.02,181.97,0.03497912]
[1755694233895,2.42143028,182.03,181.97,0.03497912]
[1755694234098,0.04,182.01,181.97,0.03497912]
[1755694234292,0.04,182.0,181.97,0.03497912]
[1755694234597,0.04,181.99,181.97,0.03497912]
[1755694234985,0.04,182.02,181.97,0.03497912]
[1755694235190,0.04,182.05,181.97,0.03497912]
[1755694235388,0.04,182.04,181.97,0.03497912]
[1755694236093,2.42143028,182.05,181.97,0.03497912]
[1755694236094,5.4942,181.98,181.97,0.03497912]
[1755694236293,0.04,182.0,181.97,3.13497912]
[1755694236594,0.04,182.03,181.97,3.13497912]
[1755694237189,0.04,182.03,181.98,3.1]
[1755694237499,2.42143028,182.05,181.98,3.1]
[1755694237500,0.04,182.04,181.98,3.1]
[1755694237695,5.4938,182.0,181.98,3.1]
[1755694237891,0.04,182.04,181.98,3.1]
[1755694238291,5.4936,182.01,181.98,3.1]
[1755694238491,0.04,182.04,181.98,3.1]
[1755694238688,5.4934,182.01,181.98,3.1]
[1755694238893,0.04,182.04,181.97,3.13497912]
[1755694239699,5.4932,182.02,181.97,3.13497912]
[1755694239896,0.04,182.04,181.98,3.1]
[1755694240292,5.4933,182.02,181.99,3.1]
[1755694240696,0.04,182.04,181.99,3.1]
[1755694240697,2.42143028,182.05,181.99,3.1]
[1755694240888,0.04,182.03,181.99,3.1]
[1755694241092,0.04,182.03,181.97,0.03497912]
[1755694241794,5.4938,182.0,181.97,3.13497912]
[1755694241998,0.04,182.03,181.97,0.03497912]
[1755694242199,5.4932,182.02,181.97,0.03497912]
[1755694242396,5.4932,182.02,181.99,3.1]
[1755694242596,0.04,182.04,181.99,3.1]
[1755694242900,0.04,182.04,181.97,0.03497912]
[1755694242901,5.4938,182.0,181.97,3.13497912]
[1755694243098,0.04,182.04,181.97,3.13497912]
[1755694243294,5.4942,181.98,181.97,0.03497912]
[1755694243499,0.04,182.01,181.97,0.03497912]
[1755694243696,2.42143028,182.05,181.97,0.03497912]
[1755694244004,5.4942,181.98,181.97,0.03497912]
[1755694244894,5.5342,181.98,181.97,0.03497912]
[1755694246102,5.4942,181.98,181.97,0.03497912]
[1755694247091,2.42143028,182.02,181.97,0.03497912]
[1755694247300,0.04,182.0,181.97,0.03497912]
[1755694247497,0.04,182.0,181.97,3.13497912]
[1755694247695,0.04,182.02,181.97,0.03497912]
[1755694247898,0.04,182.01,181.97,0.03497912]
[1755694248100,5.4942,181.98,181.97,0.03497912]
[1755694251104,5.5342,181.98,181.97,0.03497912]
[1755694251309,5.4938,182.0,181.97,0.03497912]
[1755694251504,5.4938,182.0,181.98,3.1]
[1755694251708,0.04,182.04,181.98,3.1]
[1755694251909,5.4933,182.01,181.97,0.03497912]
[1755694252207,5.4933,182.01,181.99,3.1]
[1755694252599,0.04,181.99,181.97,0.03497912]
[1755694252802,0.04,182.04,181.97,0.03497912]
[1755694253408,5.4942,181.98,181.97,0.03497912]
[1755694254807,5.494,181.99,181.97,0.03497912]
[1755694255005,0.04,182.02,181.98,3.1]
[1755694255207,2.46143028,182.05,181.99,3.1]
[1755694256507,5.4932,182.02,182.0,2.92]
[1755694257202,5.4933,182.01,182.0,2.92]
[1755694258910,5.4933,182.01,181.99,2.95971767]
[1755694260110,5.4936,182.0,181.99,0.03971767]
[1755694260318,5.5236,182.0,181.99,0.03971767]
[1755694262410,5.4936,182.0,181.99,0.03971767]
[1755694262813,5.4936,182.0,181.99,2.95971767]
[1755694263319,0.03,182.03,181.99,2.95971767]
[1755694263510,0.03,182.03,182.0,2.92]
[1755694263914,5.4933,182.01,182.0,2.92]
[1755694264413,0.03,182.07,182.0,2.92]
[1755694265009,5.4929,182.03,182.0,2.92]
[1755694265213,5.4929,182.03,182.01,2.92]
[1755694265406,5.4929,182.03,182.02,2.92]
[1755694265607,0.03,182.1,182.01,2.92]
[1755694266008,5.4923,182.05,182.01,2.92]
[1755694266218,0.03,182.1,182.03,2.92]
[1755694266410,0.03,182.1,182.04,0.04034289]
[1755694266815,0.03,182.1,182.04,2.96034289]
[1755694267213,5.492,182.06,182.04,2.96034289]
[1755694267417,5.492,182.06,182.05,2.92]
[1755694267716,234.72804385,182.11,182.05,2.92]
[1755694268717,234.72804385,182.11,182.04,2.96034289]
[1755694269820,5.492,182.06,182.04,2.96034289]
[1755694270023,234.72804385,182.11,182.05,2.92]
[1755694270421,5.4918,182.06,182.05,2.92]
[1755694271817,135.82,182.11,182.05,2.92]
[1755694272530,5.4918,182.06,182.05,2.92]
[1755694272818,0.03,182.1,182.04,0.04034289]
[1755694273125,135.82,182.11,182.04,0.04034289]
[1755694273126,5.5221,182.05,182.04,0.04034289]
[1755694273425,5.4921,182.05,182.04,0.04034289]
[1755694273626,5.5221,182.05,182.04,0.04034289]
[1755694274214,5.5221,182.05,181.97,2.92]
[1755694274215,5.4942,181.98,181.97,2.92]
[1755694274816,5.4942,181.98,181.87,9.19231628]
[1755694274817,0.03,182.02,181.88,8.46473932]
[1755694275026,0.03,182.02,181.89,2.92]
[1755694275322,0.03,182.02,181.9,5.4963]
[1755694275519,0.03,182.02,181.92,2.92]
[1755694275719,0.04100252,181.97,181.92,2.92]
[1755694275919,5.4951,181.95,181.93,2.92]
[1755694276324,5.4954,181.94,181.93,2.92]
[1755694276622,0.04100252,181.97,181.9,2.92]
[1755694277215,5.4958,181.93,181.89,5.4969]
[1755694277414,5.4958,181.93,181.91,2.92]
[1755694277615,2.42143028,181.97,181.86,2.92]
[1755694277920,0.03,181.96,181.86,2.92]
[1755694278120,0.03806003,181.94,181.86,2.92]
[1755694278316,5.4967,181.9,181.82,2.42143028]
[1755694278515,5.4967,181.9,181.88,2.92]
[1755694278721,5.4967,181.9,181.89,2.92]
[1755694280629,0.03893309,181.91,181.84,2.42143028]
[1755694280825,0.03893309,181.91,181.9,2.92]
[1755694281127,0.07,182.04,181.9,5.34143028]
[1755694281327,0.07,182.04,181.93,5.4957]
[1755694281532,0.07,182.04,181.94,2.92]
[1755694281725,5.494,181.99,181.95,2.92]
[1755694281924,5.494,181.99,181.93,2.42143028]
[1755694282228,5.4937,182.0,181.97,2.92]
[1755694282427,5.4937,182.0,181.98,2.92]
[1755694283126,0.07,182.04,181.98,2.92]
[1755694283734,0.07,182.04,181.93,2.42143028]
[1755694283922,0.07,182.04,181.99,0.04014915]
[1755694284124,371.66143028,182.05,181.99,0.04014915]
[1755694284324,0.07,182.02,181.99,0.04014915]
[1755694285031,5.4936,182.0,181.99,0.04014915]
[1755694285828,0.07,182.04,182.0,2.89]
[1755694286129,0.07,182.03,181.99,0.04014915]
[1755694286529,5.4932,182.02,181.99,2.93014915]
[1755694286930,5.4933,182.01,181.99,2.93014915]
[1755694287226,0.07,182.03,181.99,2.93014915]
[1755694287421,0.07,182.07,181.99,0.04014915]
[1755694287620,138.20143028,182.08,181.99,0.04014915]
[1755694287621,5.4936,182.0,181.99,0.04014915]
[1755694290135,0.07,181.99,181.89,2.89]
[1755694290334,0.07,181.98,181.89,2.89]